bitfinex-derivatives/quotes_BNBF0:USTF0_20250305
["timestamp","ask_amount","ask_price","bid_price","bid_amount"]
[1741179384135,0.92122316,597.55,597.03,0.33499154]
[1741179384330,0.92120461,597.54,597.03,0.33499154]
[1741179384532,1.164155,597.54,597.03,0.33499154]
[1741179384932,1.47376358,597.7,597.03,0.33499154]
[1741179385131,4.01745272,597.69,597.03,0.33499154]
[1741179385335,5.18139452,597.68,597.03,0.33499154]
[1741179385536,4.01745272,597.67,597.03,0.33499154]
[1741179385737,4.01745272,597.66,597.03,0.33499154]
[1741179385937,4.01745272,597.65,597.03,0.33499154]
[1741179386138,4.01745272,597.64,597.03,0.33499154]
[1741179386338,4.01745272,597.63,597.03,0.33499154]
[1741179386537,4.01745272,597.62,597.03,0.33499154]
[1741179386838,1.1639418,597.63,597.03,0.33499154]
[1741179386839,4.01745272,597.61,597.03,0.33499154]
[1741179387141,4.01745272,597.6,597.03,0.33499154]
[1741179387440,5.18139452,597.59,597.03,0.33499154]
[1741179387637,4.01745272,597.58,597.03,0.33499154]
[1741179387838,4.01745272,597.57,597.03,0.33499154]
[1741179388137,4.01745272,597.56,597.03,0.33499154]
[1741179388331,4.01745272,597.55,597.03,0.33499154]
[1741179388538,4.01745272,597.54,597.03,0.33499154]
[1741179388737,4.01745272,597.53,597.03,0.33499154]
[1741179388937,4.01745272,597.52,597.03,0.33499154]
[1741179389137,4.01745272,597.51,597.03,0.33499154]
[1741179389337,4.01710876,597.5,597.03,0.33499154]
[1741179389534,3.70763094,597.49,597.03,0.33499154]
[1741179389738,2.54368914,597.48,597.03,0.33499154]
[1741179389938,2.54342935,597.47,597.03,0.33499154]
[1741179390139,2.54342935,597.46,597.03,0.33499154]
[1741179390341,0.92083191,597.45,597.03,0.33499154]
[1741179390541,0.92083191,597.44,597.03,0.33499154]
[1741179390835,2.54296079,597.43,597.03,0.33499154]
[1741179391042,2.54296079,597.42,597.03,0.33499154]
[1741179391240,2.08477371,597.41,597.03,0.33499154]
[1741179391441,0.92083191,597.4,597.03,0.33499154]
[1741179391642,0.92083191,597.39,597.03,0.33499154]
[1741179391841,1.1639418,597.41,597.03,0.33499154]
[1741179392043,0.92116768,597.4,597.03,0.33499154]
[1741179392236,0.92116768,597.39,597.03,0.33499154]
[1741179392440,1.1639418,597.4,597.03,0.33499154]
[1741179392636,0.92123644,597.39,597.03,0.33499154]
[1741179392836,1.1639418,597.39,597.03,0.33499154]
[1741179393240,0.92127334,597.38,597.03,0.33499154]
[1741179393540,1.1639418,597.38,597.03,0.33499154]
[1741179393942,1.47388021,597.62,597.03,0.33499154]
[1741179394138,4.01770043,597.61,597.03,0.33499154]
[1741179394340,4.01770043,597.6,597.03,0.33499154]
[1741179394539,4.01770043,597.59,597.03,0.33499154]
[1741179394739,4.01770043,597.58,597.03,0.33499154]
[1741179394941,4.01770043,597.57,597.03,0.33499154]
[1741179395140,4.01770043,597.56,597.03,0.33499154]
[1741179395340,4.01770043,597.55,597.03,0.33499154]
[1741179395540,4.01770043,597.54,597.03,0.33499154]
[1741179395741,4.01770043,597.53,597.03,0.33499154]
[1741179396044,5.18223763,597.52,597.03,0.33499154]
[1741179396247,2.54382022,597.51,597.03,0.33499154]
[1741179396440,2.54382022,597.5,597.03,0.33499154]
[1741179396641,2.54382022,597.49,597.03,0.33499154]
[1741179396842,1.1645372,597.5,597.03,0.33499154]
[1741179397042,0.92176032,597.49,597.03,0.33499154]
[1741179397242,1.47502006,597.76,597.03,0.33499154]
[1741179397442,4.02098241,597.75,597.03,0.33499154]
[1741179397642,4.02098241,597.74,597.03,0.33499154]
[1741179397844,4.02098241,597.73,597.03,0.33499154]
[1741179398040,2.54596235,597.72,597.03,0.33499154]
[1741179398246,2.54596235,597.71,597.03,0.33499154]
[1741179398446,2.54596235,597.7,597.03,0.33499154]
[1741179398647,2.54596235,597.69,597.03,0.33499154]
[1741179398840,2.54596235,597.68,597.03,0.33499154]
[1741179399042,0.92190119,597.67,597.03,0.33499154]
[1741179399243,0.92190119,597.66,597.03,0.33499154]
[1741179399443,2.54601705,597.65,597.03,0.33499154]
[1741179399640,0.92190119,597.64,597.03,0.33499154]
[1741179399840,1.1653334,597.66,597.03,0.33499154]
[1741179400148,1.47513017,597.87,597.03,0.33499154]
[1741179400345,4.02147857,597.86,597.03,0.33499154]
[1741179400546,4.02147857,597.85,597.03,0.33499154]
[1741179400744,4.02147857,597.84,597.03,0.33499154]
[1741179400941,5.18682733,597.83,597.03,0.33499154]
[1741179401145,4.02147857,597.82,597.03,0.33499154]
[1741179401346,1.16534876,597.83,597.03,0.33499154]
[1741179401347,4.02147857,597.81,597.03,0.33499154]
[1741179401546,4.02147857,597.8,597.03,0.33499154]
[1741179401842,4.02147857,597.79,597.03,0.33499154]
[1741179402042,4.02147857,597.78,597.03,0.33499154]
[1741179402248,2.5463484,597.77,597.03,0.33499154]
[1741179402546,2.5463484,597.76,597.03,0.33499154]
[1741179402746,2.5463484,597.75,597.03,0.33499154]
[1741179402939,2.5463484,597.74,597.03,0.33499154]
[1741179403144,2.5463484,597.73,597.03,0.33499154]
[1741179403342,0.92201875,597.72,597.03,0.33499154]
[1741179403547,2.08736751,597.71,597.03,0.33499154]
[1741179403748,1.16534876,597.71,597.03,0.33499154]
[1741179404148,1.16534876,597.7,597.03,0.33499154]
[1741179404647,1.47510016,597.93,597.03,0.33499154]
[1741179404846,5.18689532,597.92,597.03,0.33499154]
[1741179405047,4.02148286,597.91,597.03,0.33499154]
[1741179405247,1.16541246,597.92,597.03,0.33499154]
[1741179405248,4.02148286,597.9,597.03,0.33499154]
[1741179405544,4.02148286,597.89,597.03,0.33499154]
[1741179405748,4.02148286,597.88,597.03,0.33499154]
[1741179405948,5.18689532,597.87,597.03,0.33499154]
[1741179406146,4.02148286,597.86,597.03,0.33499154]
[1741179406341,4.02148286,597.85,597.03,0.33499154]
[1741179406544,5.18689532,597.84,597.03,0.33499154]
[1741179406847,4.02148286,597.83,597.03,0.33499154]
[1741179407142,5.18689532,597.82,597.03,0.33499154]
[1741179407346,2.5463827,597.81,597.03,0.33499154]
[1741179407543,1.16541246,597.82,597.03,0.33499154]
[1741179407544,2.5463827,597.8,597.03,0.33499154]
[1741179407741,2.5463827,597.79,597.03,0.33499154]
[1741179407946,2.5463827,597.78,597.03,0.33499154]
[1741179408144,0.2912012,598.04,597.03,0.33499154]
[1741179408145,3.71179516,597.77,597.03,0.33499154]
[1741179408346,2.5463827,597.76,597.03,0.33499154]
[1741179408547,2.5463827,597.75,597.03,0.33499154]
[1741179408848,2.5463827,597.74,597.03,0.33499154]
[1741179409048,0.92203181,597.73,597.03,0.33499154]
[1741179409249,1.16541246,597.76,597.03,0.33499154]
[1741179409549,2.54599271,597.75,597.03,0.33499154]
[1741179409746,2.54599271,597.74,597.03,0.33499154]
[1741179409948,0.92188226,597.73,597.03,0.33499154]
[1741179410154,0.92188226,597.72,597.03,0.33499154]
[1741179410453,1.16541246,597.71,597.03,0.33499154]
[1741179410845,1.47506441,598.0,597.03,0.33499154]
[1741179411043,4.021136,597.99,597.03,0.33499154]
[1741179411244,5.1867073,597.98,597.03,0.33499154]
[1741179411447,4.021136,597.97,597.03,0.33499154]
[1741179411650,4.021136,597.96,597.03,0.33499154]
[1741179411846,4.021136,597.95,597.03,0.33499154]
[1741179412050,4.021136,597.94,597.03,0.33499154]
[1741179412251,4.021136,597.93,597.03,0.33499154]
[1741179412452,4.021136,597.92,597.03,0.33499154]
[1741179412654,4.021136,597.91,597.03,0.33499154]
[1741179412953,4.021136,597.9,597.03,0.33499154]
[1741179413152,4.021136,597.89,597.03,0.33499154]
[1741179413346,4.021136,597.88,597.03,0.33499154]
[1741179413552,4.021136,597.87,597.03,0.33499154]
[1741179413747,4.021136,597.86,597.03,0.33499154]
[1741179413946,4.021136,597.85,597.03,0.33499154]
[1741179414147,4.021136,597.84,597.03,0.33499154]
[1741179414348,4.02142472,597.83,597.03,0.33499154]
[1741179414652,2.54607159,597.82,597.03,0.33499154]
[1741179414852,2.54607159,597.81,597.03,0.33499154]
[1741179415053,2.54607159,597.8,597.03,0.33499154]
[1741179415253,2.54607159,597.79,597.03,0.33499154]
[1741179415552,2.54607159,597.78,597.03,0.33499154]
[1741179415753,2.54607159,597.77,597.03,0.33499154]
[1741179415953,1.1655713,597.79,597.03,0.33499154]
[1741179415954,2.54612129,597.76,597.03,0.33499154]
[1741179416148,0.92190852,597.75,597.03,0.33499154]
[1741179416351,2.54602956,597.74,597.03,0.33499154]
[1741179416546,1.1655713,597.74,597.03,0.33499154]
[1741179416954,0.9218501,597.73,597.03,0.33499154]
[1741179417156,1.1655713,597.73,597.03,0.33499154]
[1741179417757,2.08732049,597.72,597.03,0.33499154]
[1741179417955,0.92174919,597.71,597.03,0.33499154]
[1741179418154,0.92174919,597.7,597.03,0.33499154]
[1741179418455,1.1655713,597.71,597.03,0.33499154]
[1741179418654,0.92166316,597.7,597.03,0.33499154]
[1741179418849,1.1655713,597.7,597.03,0.33499154]
[1741179419453,1.47497223,597.9,597.03,0.33499154]
[1741179419648,4.0203565,597.89,597.03,0.33499154]
[1741179419851,1.49761486,599.03,597.03,0.33499154]
[1741179419852,4.02030309,597.88,597.03,0.33499154]
[1741179420053,5.18523812,597.87,597.03,0.33499154]
[1741179420251,4.02030309,597.86,597.03,0.33499154]
[1741179420455,4.02030309,597.85,597.03,0.33499154]
[1741179420656,4.02030309,597.84,597.03,0.33499154]
[1741179420849,2.54533086,597.83,597.03,0.33499154]
[1741179421048,2.54533086,597.82,597.03,0.33499154]
[1741179421255,2.54533086,597.81,597.03,0.33499154]
[1741179421550,0.29123776,598.0,597.03,0.33499154]
[1741179421551,2.54524556,597.8,597.03,0.33499154]
[1741179421752,2.54524556,597.79,597.03,0.33499154]
[1741179421956,2.54524556,597.78,597.03,0.33499154]
[1741179422151,0.92161911,597.77,597.03,0.33499154]
[1741179422455,0.92161911,597.76,597.03,0.33499154]
[1741179422656,0.92161911,597.75,597.03,0.33499154]
[1741179422856,1.16488563,597.75,597.03,0.33499154]
[1741179423252,1.47480188,597.95,597.03,0.33499154]
[1741179423559,5.18575242,597.94,597.03,0.33499154]
[1741179423757,4.02060417,597.93,597.03,0.33499154]
[1741179424053,5.18575242,597.92,597.03,0.33499154]
[1741179424256,4.02060417,597.91,597.03,0.33499154]
[1741179424458,4.02060417,597.9,597.03,0.33499154]
[1741179424756,4.02060417,597.89,597.03,0.33499154]
[1741179424957,4.02060417,597.88,597.03,0.33499154]
[1741179425152,4.02060417,597.87,597.03,0.33499154]
[1741179425356,4.02060417,597.86,597.03,0.33499154]
[1741179425652,4.02060417,597.85,597.03,0.33499154]
[1741179425850,4.02060417,597.84,597.03,0.33499154]
[1741179426053,4.01992277,597.83,597.03,0.33499154]
[1741179426250,2.54580229,597.82,597.03,0.33499154]
[1741179426450,2.54580229,597.81,597.03,0.33499154]
[1741179426655,2.54580229,597.8,597.03,0.33499154]
[1741179426859,1.16514825,597.8,597.03,0.33499154]
[1741179427158,1.47421754,597.99,597.03,0.33499154]
[1741179427352,4.01887491,597.98,597.03,0.33499154]
[1741179427552,4.01887491,597.97,597.03,0.33499154]
[1741179427755,4.01887491,597.96,597.03,0.33499154]
[1741179427952,4.01887491,597.95,597.03,0.33499154]
[1741179428157,0.29124751,598.0,597.03,0.33499154]
[1741179428158,5.18453207,597.94,597.03,0.33499154]
[1741179428359,4.01963081,597.93,597.03,0.33499154]
[1741179428560,4.01963081,597.92,597.03,0.33499154]
[1741179428859,4.01963081,597.91,597.03,0.33499154]
[1741179429061,4.01963081,597.9,597.03,0.33499154]
[1741179429253,4.01963081,597.89,597.03,0.33499154]
[1741179429458,2.39636974,597.88,597.03,0.33499154]
[1741179429659,5.18491667,597.87,597.03,0.33499154]
[1741179429856,4.02001541,597.86,597.03,0.33499154]
[1741179430058,4.02001541,597.85,597.03,0.33499154]
[1741179430261,4.02001541,597.84,597.03,0.33499154]
[1741179430457,4.02001541,597.83,597.03,0.33499154]
[1741179430656,4.02001541,597.82,597.03,0.33499154]
[1741179430961,5.18491667,597.81,597.03,0.33499154]
[1741179431162,4.02001541,597.8,597.03,0.33499154]
[1741179431362,4.02001541,597.79,597.03,0.33499154]
[1741179431661,2.54532634,597.78,597.03,0.33499154]
[1741179431856,2.54532634,597.77,597.03,0.33499154]
[1741179432065,2.54532634,597.76,597.06,1.24801238]
[1741179432260,2.54532634,597.75,597.07,0.33496909]
[1741179432464,0.92168067,597.74,597.07,0.33496909]
[1741179432661,1.16490126,597.75,597.07,0.33496909]
[1741179433257,0.92188394,597.74,597.07,0.33496909]
[1741179433661,0.92188394,597.73,597.07,0.33496909]
[1741179433862,1.16490126,597.75,597.07,0.33496909]
[1741179434362,0.92162217,597.74,597.07,0.33496909]
[1741179434564,1.16490126,597.75,597.07,0.33496909]
[1741179434763,0.92157626,597.74,597.07,0.33496909]
[1741179435256,1.16490126,597.75,597.07,0.33496909]
[1741179435461,2.54550785,597.74,597.07,0.33496909]
[1741179435665,2.54550785,597.73,597.07,0.33496909]
[1741179435863,2.54550785,597.72,597.07,0.33496909]
[1741179436062,2.54550785,597.71,597.07,0.33496909]
[1741179436259,2.54516522,597.7,597.07,0.33496909]
[1741179436462,2.54516522,597.69,597.07,0.33496909]
[1741179436662,2.54516522,597.68,597.07,0.33496909]
[1741179436866,3.71006648,597.67,597.07,0.33496909]
[1741179437065,2.54516522,597.66,597.07,0.33496909]
[1741179437261,3.71006648,597.65,597.07,0.33496909]
[1741179437460,0.92170354,597.64,597.07,0.33496909]
[1741179437662,1.16490126,597.64,597.07,0.33496909]
[1741179437860,1.16490126,597.63,597.07,0.33496909]
[1741179438467,1.47444301,597.85,597.07,0.33496909]
[1741179438664,4.01931179,597.84,597.07,0.33496909]
[1741179438965,4.01943185,597.83,597.07,0.33496909]
[1741179439167,4.01943185,597.82,597.07,0.33496909]
[1741179439362,4.01943185,597.81,597.07,0.33496909]
[1741179439566,4.01943185,597.8,597.07,0.33496909]
[1741179439766,4.01943185,597.79,597.07,0.33496909]
[1741179440066,4.01943185,597.78,597.07,0.33496909]
[1741179440260,4.01943185,597.77,597.07,0.33496909]
[1741179440567,4.01943185,597.76,597.07,0.33496909]
[1741179440766,4.01943185,597.75,597.07,0.33496909]
[1741179441067,4.01943185,597.74,597.07,0.33496909]
[1741179441258,4.01943185,597.73,597.07,0.33496909]
[1741179441463,4.01943185,597.72,597.07,0.33496909]
[1741179441664,4.01943185,597.71,597.07,0.33496909]
[1741179441959,4.01943185,597.7,597.07,0.33496909]
[1741179442160,5.18418671,597.69,597.07,0.33496909]
[1741179442365,4.01943185,597.68,597.07,0.33496909]
[1741179442562,4.01943185,597.67,597.07,0.33496909]
[1741179442763,4.01943185,597.66,597.07,0.33496909]
[1741179442962,4.01943185,597.65,597.07,0.33496909]
[1741179443166,4.01943185,597.64,597.07,0.33496909]
[1741179443362,4.01943185,597.63,597.07,0.33496909]
[1741179443672,4.01943185,597.62,597.07,0.33496909]
[1741179443868,4.01943185,597.61,596.86,0.2913548]
[1741179444065,4.01943185,597.6,596.86,0.2913548]
[1741179444265,4.01943185,597.59,596.86,0.2913548]
[1741179444468,4.01943185,597.58,596.86,0.2913548]
[1741179444668,4.01943185,597.57,596.86,0.2913548]
[1741179444869,5.18418671,597.56,596.86,0.2913548]
[1741179445062,4.01943185,597.55,596.86,0.2913548]
[1741179445368,4.01943185,597.54,596.86,0.2913548]
[1741179445571,4.01943185,597.53,596.86,0.2913548]
[1741179445871,5.18418671,597.52,596.86,0.2913548]
[1741179446066,4.01943185,597.51,596.66,1.24801238]
[1741179446270,4.01943185,597.5,596.67,0.33519365]
[1741179446567,4.01943185,597.49,596.82,0.29137554]
[1741179446766,4.01943185,597.48,596.67,0.33519365]
[1741179446969,3.70972269,597.47,596.67,0.33519365]
[1741179447166,2.54496783,597.46,596.67,0.33519365]
[1741179447367,3.70972269,597.45,596.67,0.33519365]
[1741179447570,0.92154001,597.44,596.67,0.33519365]
[1741179447770,2.08629487,597.43,596.67,0.33519365]
[1741179447972,1.16475486,597.43,596.68,0.29141213]
[1741179448170,1.47395756,597.58,596.68,0.29141213]
[1741179448371,4.01792536,597.57,596.68,0.29141213]
[1741179448576,4.01792536,597.56,596.68,0.29141213]
[1741179448772,5.18234529,597.55,596.68,0.29141213]
[1741179449075,4.01792536,597.54,596.67,0.33519365]
[1741179449274,0.99251897,597.74,596.67,0.33519365]
[1741179449275,5.18234529,597.53,596.67,0.33519365]
[1741179449475,2.54358678,597.52,596.67,0.33519365]
[1741179449676,2.54358678,597.51,596.67,0.33519365]
[1741179449975,3.70800671,597.5,596.67,0.33519365]
[1741179450176,2.54358678,597.49,596.67,0.33519365]
[1741179450379,0.92121755,597.48,596.68,0.29140603]
[1741179450571,0.92121755,597.47,596.69,0.33518242]
[1741179450769,1.16441993,597.48,596.69,0.33518242]
[1741179450770,0.92121755,597.46,596.69,0.33518242]
[1741179450970,4.01618364,597.6,596.69,0.33518242]
[1741179451171,4.01618364,597.59,596.69,0.33518242]
[1741179451375,4.01618364,597.58,596.69,0.33518242]
[1741179451574,0.69799369,598.7,596.69,0.33518242]
[1741179451575,2.54293225,597.57,596.69,0.33518242]
[1741179451775,0.92083837,597.56,596.69,0.33518242]
[1741179451975,0.92083837,597.55,596.69,0.33518242]
[1741179452176,0.92083837,597.54,596.69,0.33518242]
[1741179452473,1.16392524,597.54,596.69,0.33518242]
[1741179452777,5.18051626,597.74,596.69,0.33518242]
[1741179452978,4.01659102,597.73,596.69,0.33518242]
[1741179453180,5.18051626,597.72,596.69,0.33518242]
[1741179453479,4.01659102,597.71,596.69,0.33518242]
[1741179453679,5.18051626,597.7,596.69,0.33518242]
[1741179453880,4.01659102,597.69,596.69,0.33518242]
[1741179454076,4.01659102,597.68,596.69,0.33518242]
[1741179454380,4.01659102,597.67,596.69,0.33518242]
[1741179454574,4.01659102,597.66,596.69,0.33518242]
[1741179454773,4.01659102,597.65,596.69,0.33518242]
[1741179454973,4.01659102,597.64,596.69,0.33518242]
[1741179455171,2.54318569,597.63,596.69,0.33518242]
[1741179455371,2.54318569,597.62,596.69,0.33518242]
[1741179455576,2.54318569,597.61,596.69,0.33518242]
[1741179455776,2.54318569,597.6,596.69,0.33518242]
[1741179455972,2.54318569,597.59,596.69,0.33518242]
[1741179456174,0.92100053,597.58,596.69,0.33518242]
[1741179456381,0.92100053,597.57,596.69,0.33518242]
[1741179456679,1.16392524,597.59,596.69,0.33518242]
[1741179456879,2.08527297,597.58,596.69,0.33518242]
[1741179457079,1.16392524,597.58,596.69,0.33518242]
[1741179457279,1.16392524,597.57,596.69,0.33518242]
[1741179457679,3.09707099,597.7,596.69,0.33518242]
[1741179457878,4.01838585,597.69,596.69,0.33518242]
[1741179458075,5.18289905,597.68,596.69,0.33518242]
[1741179458279,4.01838585,597.67,596.69,0.33518242]
[1741179458476,4.01838585,597.66,596.69,0.33518242]
[1741179458683,4.01838585,597.65,596.69,0.33518242]
[1741179458880,4.01838585,597.64,596.69,0.33518242]
[1741179459077,5.18269985,597.63,596.69,0.33518242]
[1741179459276,4.01818665,597.62,596.69,0.33518242]
[1741179459479,2.54415538,597.61,596.69,0.33518242]
[1741179459680,3.70866858,597.6,596.69,0.33518242]
[1741179459882,2.54415538,597.59,596.69,0.33518242]
[1741179460181,3.70866737,597.58,596.69,0.33518242]
[1741179460381,2.54415417,597.57,596.69,0.33518242]
[1741179460581,0.92131486,597.56,596.69,0.33518242]
[1741179460881,2.5436771,597.55,596.69,0.33518242]
[1741179461076,2.08561893,597.54,596.69,0.33518242]
[1741179461277,1.1645132,597.54,596.69,0.33518242]
[1741179461477,2.08565664,597.53,596.69,0.33518242]
[1741179461676,1.1645132,597.53,596.69,0.33518242]
[1741179461878,1.1645132,597.52,596.69,0.33518242]
[1741179462278,0.29138041,597.71,596.69,0.33518242]
[1741179462477,4.01769715,597.7,596.69,0.33518242]
[1741179462681,4.01769715,597.69,596.69,0.33518242]
[1741179462981,0.29138041,597.71,596.69,0.33518242]
[1741179462982,5.18212371,597.68,596.69,0.33518242]
[1741179463280,4.01769715,597.67,596.69,0.33518242]
[1741179463482,4.01769715,597.66,596.69,0.33518242]
[1741179463684,4.01769715,597.65,596.69,0.33518242]
[1741179463886,4.01769715,597.64,596.69,0.33518242]
[1741179464187,5.18245044,597.63,596.69,0.33518242]
[1741179464384,2.54376659,597.62,596.69,0.33518242]
[1741179464580,2.54376659,597.61,596.69,0.33518242]
[1741179464884,3.7087475,597.6,596.69,0.33518242]
[1741179465081,2.54432094,597.59,596.69,0.33518242]
[1741179465283,2.54432094,597.58,596.69,0.33518242]
[1741179465488,0.9211712,597.57,596.69,0.33518242]
[1741179465688,0.9211712,597.56,596.69,0.33518242]
[1741179465889,1.16442656,597.55,596.69,0.33518242]
[1741179466190,3.09760457,597.72,596.69,0.33518242]
[1741179466487,4.01911772,597.71,596.69,0.33518242]
[1741179466788,5.18393274,597.7,596.69,0.33518242]
[1741179466988,5.18393274,597.69,596.69,0.33518242]
[1741179467188,4.01911772,597.68,596.69,0.33518242]
[1741179467489,2.5447882,597.67,596.69,0.33518242]
[1741179467682,2.5447882,597.66,596.69,0.33518242]
[1741179467884,0.92151315,597.65,596.69,0.33518242]
[1741179468093,0.92151315,597.64,596.69,0.33518242]
[1741179468288,1.16481502,597.63,596.69,0.33518242]
[1741179468891,3.09912517,597.87,596.69,0.33518242]
[1741179469086,4.0212107,597.86,596.69,0.33518242]
[1741179469283,5.18679512,597.85,596.69,0.33518242]
[1741179469488,4.0212107,597.84,596.69,0.33518242]
[1741179469687,5.18679512,597.83,596.69,0.33518242]
[1741179469887,4.0212107,597.82,596.69,0.33518242]
[1741179470088,4.0212107,597.81,596.69,0.33518242]
[1741179470385,4.0212107,597.8,596.69,0.33518242]
[1741179470590,4.0212107,597.79,596.69,0.33518242]
[1741179470790,4.0212107,597.78,596.69,0.33518242]
[1741179470982,4.0212107,597.77,596.69,0.33518242]
[1741179471187,4.0212107,597.76,596.69,0.33518242]
[1741179471383,5.18679512,597.75,596.91,1.24801238]
[1741179471587,2.54627412,597.74,596.92,0.33505327]
[1741179471885,3.71185854,597.73,596.92,0.33505327]
[1741179472088,2.54627412,597.72,596.92,0.33505327]
[1741179472289,2.54627412,597.71,596.92,0.33505327]
[1741179472486,2.54627412,597.7,596.92,0.33505327]
[1741179472689,2.54627412,597.69,596.92,0.33505327]
[1741179472890,0.92208553,597.68,596.92,0.33505327]
[1741179473089,2.08806072,597.67,596.92,0.33505327]
[1741179473289,1.16558442,597.67,596.92,0.33505327]
[1741179473685,1.49761486,598.62,596.92,0.33505327]
[1741179473686,3.10113762,597.85,596.92,0.33505327]
[1741179473886,4.02372678,597.84,596.92,0.33505327]
[1741179474087,4.02372678,597.83,596.92,0.33505327]
[1741179474289,5.18988678,597.82,596.92,0.33505327]
[1741179474491,4.02372678,597.81,596.92,0.33505327]
[1741179474686,2.5477647,597.8,596.92,0.33505327]
[1741179474890,2.5477647,597.79,596.92,0.33505327]
[1741179475087,3.7139247,597.78,596.92,0.33505327]
[1741179475293,2.5477647,597.77,596.92,0.33505327]
[1741179475491,2.5477647,597.76,596.92,0.33505327]
[1741179475694,3.71483406,597.75,596.94,1.24801238]
[1741179475892,0.92258916,597.74,596.95,0.33503643]
[1741179476092,2.5485817,597.73,596.95,0.33503643]
[1741179476288,0.92258916,597.72,596.95,0.33503643]
[1741179476595,2.08874916,597.71,596.95,0.33503643]
[1741179476794,1.16616,597.71,596.95,0.33503643]
[1741179476990,1.47685116,597.96,596.95,0.33503643]
[1741179477189,4.02602262,597.95,596.95,0.33503643]
[1741179477391,0.29124995,597.89,596.95,0.33503643]
[1741179477590,4.02602262,597.88,596.95,0.33503643]
[1741179477790,4.02602262,597.87,596.95,0.33503643]
[1741179478094,5.19334669,597.86,596.95,0.33503643]
[1741179478296,4.02657525,597.85,596.95,0.33503643]
[1741179478488,5.19334669,597.84,596.95,0.33503643]
[1741179478693,0.99427867,597.82,596.95,0.33503643]
[1741179478890,5.02085392,597.81,596.95,0.33503643]
[1741179479093,0.99427867,597.79,596.95,0.33503643]
[1741179479292,5.02085392,597.78,596.95,0.33503643]
[1741179479493,4.02657525,597.77,596.95,0.33503643]
[1741179479695,4.02657525,597.76,596.95,0.33503643]
[1741179479995,6.18762536,597.75,596.95,0.33503643]
[1741179480191,4.02657525,597.74,596.95,0.33503643]
[1741179480393,0.99427867,597.7,596.95,0.33503643]
[1741179480595,5.02085392,597.69,596.95,0.33503643]
[1741179480791,5.19334669,597.68,596.95,0.33503643]
[1741179480991,4.02657525,597.67,596.95,0.33503643]
[1741179481198,4.02657525,597.66,596.95,0.33503643]
[1741179481390,4.02657525,597.65,596.95,0.33503643]
[1741179481596,4.02657525,597.64,596.95,0.33503643]
[1741179481897,5.19334669,597.63,596.95,0.33503643]
[1741179482091,4.02657525,597.62,596.95,0.33503643]
[1741179482296,4.02657525,597.61,596.95,0.33503643]
[1741179482492,4.02657525,597.6,596.95,0.33503643]
[1741179482694,4.02657525,597.59,596.95,0.33503643]
[1741179482892,0.99427867,597.53,596.95,0.33503643]
[1741179483095,1.16677144,597.59,596.95,0.33503643]
[1741179483096,4.02657525,597.52,596.95,0.33503643]
[1741179483398,4.02657525,597.51,596.95,0.33503643]
[1741179483595,4.02657525,597.5,596.95,0.33503643]
[1741179483792,4.02657525,597.49,596.95,0.33503643]
[1741179483994,4.02657525,597.48,596.95,0.33503643]
[1741179484297,0.9235222,597.47,596.95,0.33503643]
[1741179484496,1.16677144,597.48,596.95,0.33503643]
[1741179484497,0.92358877,597.46,596.95,0.33503643]
[1741179484698,2.09036021,597.45,596.95,0.33503643]
[1741179484896,2.55058571,597.44,596.95,0.33503643]
[1741179485096,2.55054455,597.43,596.95,0.33503643]
[1741179485294,2.55054455,597.42,596.95,0.33503643]
[1741179485495,2.55041696,597.41,596.95,0.33503643]
[1741179485696,0.92349965,597.4,596.95,0.33503643]
[1741179485997,3.71695757,597.39,596.95,0.33503643]
[1741179486198,0.92349965,597.38,596.95,0.33503643]
[1741179486391,2.09027109,597.37,596.95,0.33503643]
[1741179486591,0.92346913,597.36,596.95,0.33503643]
[1741179486797,1.16677144,597.37,596.95,0.33503643]
[1741179487098,2.55004069,597.36,596.95,0.33503643]
[1741179487298,2.54994485,597.35,596.95,0.33503643]
[1741179487499,2.54994485,597.34,596.95,0.33503643]
[1741179487698,2.54994485,597.33,596.95,0.33503643]
[1741179487899,3.71671629,597.32,596.95,0.33503643]
[1741179488099,2.54994485,597.31,596.95,0.33503643]
[1741179488398,2.54989673,597.3,596.95,0.33503643]
[1741179488699,1.16677144,597.31,596.95,0.33503643]
[1741179488700,0.92341399,597.29,596.95,0.33503643]
[1741179488999,0.92334376,597.28,596.53,1.24801238]
[1741179489198,1.16677144,597.31,596.53,1.24801238]
[1741179489199,0.92334965,597.27,596.54,0.3352667]
[1741179489400,1.16677144,597.28,596.54,0.62671666]
[1741179489595,2.09011719,597.27,596.55,0.33526108]
[1741179489800,1.16677144,597.26,596.55,0.33526108]
[1741179489998,1.47735305,597.46,596.55,0.33526108]
[1741179490200,4.0270799,597.45,596.55,0.33526108]
[1741179490402,4.0270799,597.44,596.55,0.33526108]
[1741179490596,4.0270799,597.43,596.55,0.33526108]
[1741179490796,4.0270799,597.42,596.55,0.33526108]
[1741179490997,4.0270799,597.41,596.55,0.33526108]
[1741179491198,4.02608834,597.4,596.55,0.33526108]
[1741179491505,5.19303468,597.39,596.55,0.33526108]
[1741179491704,4.02608834,597.38,596.55,0.33526108]
[1741179491897,4.02608834,597.37,596.55,0.33526108]
[1741179492097,4.02608834,597.36,596.55,0.33526108]
[1741179492303,2.54911608,597.35,596.55,0.33526108]
[1741179492499,2.54911608,597.34,596.55,0.33526108]